Workbook

Sheet с 7 до 11 лет
A2: День: понедельник | E2: Сезон: 01.09 - 01.03 (2024 - 2025г г) | G2: .03 (2025-2026г)
A3: Неделя: 1 | E3: Возраст: с 7 до 11 лет
A4: № рецептуры | B4: Наименование блюда | E4: масса порций | F4: Пищевые вещества (г) | I4: энергетическая ценность | J4: Витамины | M4: Минеральные вещества (мг)
F5: Б | G5: Ж | H5: У | J5: В1 | K5: С | L5: А | M5: Са | N5: Р | O5: Мg | P5: Fe
B7: Завтрак
A8: 19 | B8: Салат из моркови | E8: 80 | F8: 1.6 | G8: 7.2 | H8: 4.23 | I8: 74.4 | J8: 0.03 | K8: 0.82 | L8: 27.55 | M8: 16.56 | N8: 295.62 | O8: 22.75 | P8: 0.72
A9: 1 | B9: Котлеты мясные с томатным соусом | E9: 90/40 | F9: 11.7 | G9: 11.7 | H9: 10.8 | I9: 213.5 | J9: 0.02 | K9: 0.35 | L9: 17.55 | M9: 8.86 | N9: 162.2 | O9: 23.6 | P9: 1.48
A10: 184 | B10: Каша ячневая рассыпчатая | E10: 150/5 | F10: 4.9 | G10: 3.7 | H10: 30.9 | I10: 179 | J10: 0.15 | K10: 8.48 | L10: 40 | M10: 89.93 | N10: 3 | O10: 58.6 | P10: 1.56
A11: 285 | B11: Чай с лимоном и сахаром | E11: 200/7 | F11: 0.07 | G11: 0.01 | H11: 15.31 | I11: 61.62 | J11: 0 | K11: 1.12 | L11: 0 | M11: 2.73 | N11: 0 | O11: 0.73 | P11: 0.06
A12: СГР | B12: Хлеб пшеничный (для детского питания) | E12: 50 | F12: 4 | G12: 0 | H12: 7.81 | I12: 39.06 | J12: 0.09 | K12: 0 | L12: 0 | M12: 10.2 | N12: 35.8 | O12: 14.2 | P12: 1
B13: Итого за завтрак | F13: =SUM(F8:F12) -> 22.27 | G13: 22.61 | H13: 69.05 | I13: 567.58 | J13: 0.29 | K13: 10.77 | L13: 85.1 | M13: 128.28 | N13: 496.62 | O13: 119.88 | P13: 4.82
B14: Обед
A15: 27 | B15: Салат из свеклы с яблоками | E15: 80 | F15: 0.7 | G15: 4 | H15: 5.9 | I15: 62 | J15: 0.03 | K15: 5.64 | L15: 0 | M15: 13.2 | N15: 24.49 | O15: 11.08 | P15: 0.47
A16: 63 | B16: Суп картофельный с горохом и гренками | E16: 200 | F16: 7.9 | G16: 4.3 | H16: 31.5 | I16: 199 | J16: 0.08 | K16: 2.99 | L16: 25.76 | M16: 20.55 | N16: 134.18 | O16: 23.56 | P16: 2.15
A17: 2 | B17: Тефтели мясные пф с томатным соусом | E17: 90/40 | F17: 11.7 | G17: 11.7 | H17: 10.8 | I17: 213.5 | J17: 0.1 | K17: 1.9 | L17: 48.32 | M17: 27.33 | N17: 178.97 | O17: 41.8 | P17: 1.97
A18: 224 | B18: Рагу овощное | E18: 160 | F18: 3.6 | G18: 9.2 | H18: 16.16 | I18: 161.6 | J18: 0.04 | K18: 7.62 | L18: 10.34 | M18: 34.79 | N18: 46.7 | O18: 24 | P18: 0.74
A19: 311 | B19: Витаминизированный кисель | E19: 200 | F19: 0.25 | G19: 0 | H19: 4.8 | I19: 20 | J19: 0.01 | K19: 20.2 | L19: 0 | M19: 6.76 | N19: 4.4 | O19: 3.6 | P19: 0.92
A20: СГР | B20: Хлеб пшеничный | E20: 25 | F20: 2 | G20: 0 | H20: 10 | I20: 50 | J20: 0.04 | K20: 0 | L20: 0 | M20: 5.75 | N20: 21.75 | O20: 8.25 | P20: 0.5
A21: СГР | B21: Хлеб ржаной | E21: 25 | F21: 2 | G21: 0 | H21: 10 | I21: 50 | J21: 0.04 | K21: 0 | L21: 0 | M21: 7.25 | N21: 32.5 | O21: 10.5 | P21: 0.9
B22: Итого за обед | F22: =SUM(F15:F21) -> 28.15 | G22: 29.2 | H22: 89.16 | I22: 756.1 | J22: 0.34 | K22: 38.35 | L22: 84.42 | M22: 115.63 | N22: 442.99 | O22: 122.79 | P22: 7.65
B23: Итого за день | F23: 50.66 | G23: 52.71 | H23: 169.67 | I23: 1371.18 | J23: 0.71 | K23: 31.27 | L23: 124.2 | M23: 312.17 | N23: 818.22 | O23: 183.74 | P23: 10.1
A27: День: вторник | E27: Сезон: 01.09 - 01.03 (2024 - 2025г г) | G27: .03 (2025-2026г)
A28: Неделя: 1 | E28: Возраст: с 7 до 11 лет
A30: № рецептуры | B30: Наименование блюда | E30: масса | F30: Пищевые вещества (г) | I30: энерге- | J30: Витамины | M30: Минеральные вещества (мг)
F31: Б | G31: Ж | H31: У | J31: В1 | K31: С | L31: А | M31: Са | N31: Р | O31: Мg | P31: Fe
B33: Завтрак
A34: 3 | B34: Фрикадельки мясные пф с томатным соусом | E34: 90/40 | F34: 12.5 | G34: 10.05 | H34: 8.29 | I34: 152.4 | J34: 0.08 | K34: 1.89 | L34: 48.17 | M34: 29.01 | N34: 197.58 | O34: 16.03 | P34: 2.25
A35: 140 | B35: Каша рисовая рассыпчатая | E35: 155 | F35: 3.58 | G35: 3.92 | H35: 36.75 | I35: 200 | J35: 0.108 | K35: 0 | L35: 28.8 | M35: 13.38 | N35: 55.51 | O35: 9.82 | P35: 0.99
A36: 301 | B36: Напиток "Валетек" | E36: 200 | F36: 0 | G36: 0 | H36: 15.8 | I36: 60 | J36: 0.3 | K36: 11.2 | L36: 170 | M36: 220 | N36: 4.2 | O36: 12.18 | P36: 0.08
A37: СГР | B37: Хлеб пшеничный для детского питания | E37: 50 | F37: 4 | G37: 0 | H37: 7.81 | I37: 39.06 | J37: 0.07 | K37: 0 | L37: 0 | M37: 9.2 | N37: 34.8 | O37: 13.2 | P37: 0.8
B38: Итого за завтрак | F38: =SUM(F34:F37) -> 20.08 | G38: 13.97 | H38: 68.65 | I38: 451.46 | J38: 0.558 | K38: 13.09 | L38: 246.97 | M38: 271.59 | N38: 292.09 | O38: 51.23 | P38: 4.12
B39: Обед
A40: 53 | B40: Щи из свежей капусты | E40: 200/10 | F40: 1.67 | G40: 5.06 | H40: 8.51 | I40: 86.26 | J40: 0.15 | K40: 26.8 | L40: 9.51 | M40: 41.35 | N40: 198.48 | O40: 42.95 | P40: 3.15
A41: 1 | B41: Котлеты мясные с томатным соусом | E41: 90/40 | F41: 11.7 | G41: 11.7 | H41: 10.8 | I41: 213.5 | J41: 0.02 | K41: 0.35 | L41: 17.55 | M41: 8.86 | N41: 101.41 | O41: 23.6 | P41: 0.57
A42: 212 | B42: Макаронные изделия отварные с маслом | E42: 150/5 | F42: 5.82 | G42: 4.31 | H42: 37.08 | I42: 210.5 | J42: 0.09 | K42: 0 | L42: 0 | M42: 14.03 | N42: 0 | O42: 11.09 | P42: 1.12
A43: 283 | B43: Чай с сахаром | E43: 200 | F43: 0.1 | G43: 0 | H43: 9.1 | I43: 35 | J43: 0 | K43: 0 | L43: 0 | M43: 0.26 | N43: 0 | O43: 0 | P43: 0.03
A44: СГР | B44: Хлеб пшеничный | E44: 25 | F44: 2 | G44: 0 | H44: 10 | I44: 50 | J44: 0.04 | K44: 0 | L44: 0 | M44: 5.75 | N44: 21.75 | O44: 8.25 | P44: 0.5
A45: СГР | B45: Хлеб ржаной | E45: 25 | F45: 2 | G45: 0 | H45: 10 | I45: 50 | J45: 0.04 | K45: 0 | L45: 0 | M45: 7.25 | N45: 32.5 | O45: 10.5 | P45: 0.9
B46: Итого за обед | F46: =SUM(F40:F45) -> 23.29 | G46: 21.07 | H46: 85.49 | I46: 645.26 | J46: 0.34 | K46: 27.15 | L46: 27.06 | M46: 77.5 | N46: 354.14 | O46: 96.39 | P46: 6.27
B47: Итого за день | F47: 35.1 | G47: 37.41 | H47: 154.97 | I47: 1256.08 | J47: 0.663 | K47: 114.15 | L47: 120.31 | M47: 419.2 | N47: 871.8 | O47: 198.67 | P47: 10.63
A51: День: среда | E51: Сезон: 01.09 - 01.03 (2024 - 2025г г) | G51: .03 (2025-2026г)
A52: Неделя: 1 | E52: Возраст: с 7 до 11 лет
A53: № рецептуры | B53: Наименование блюда | E53: масса порций | F53: Пищевые вещества (г) | I53: энергетическая ценность | J53: Витамины | M53: Минеральные вещества (мг)
F54: Б | G54: Ж | H54: У | J54: В1 | K54: С | L54: А | M54: Са | N54: Р | O54: Мg | P54: Fe
B56: Завтрак
A57: 1 | B57: Котлеты мясные с томатным соусом | E57: 90/40 | F57: 11.7 | G57: 11.7 | H57: 10.8 | I57: 213.5 | J57: 0.02 | K57: 0.35 | L57: 17.55 | M57: 8.86 | N57: 121.66 | O57: 23.6 | P57: 0.57
A58: 212 | B58: Макаронные изделия отварные с маслом | E58: 150/5 | F58: 5.82 | G58: 4.31 | H58: 37.08 | I58: 210.5 | J58: 0.17 | K58: 26.11 | L58: 28.8 | M58: 43.14 | N58: 98.22 | O58: 33.03 | P58: 1.2
A59: 283 | B59: Чай с сахаром | E59: 200 | F59: 0.1 | G59: 0 | H59: 9.1 | I59: 35 | J59: 0 | K59: 0 | L59: 0 | M59: 0.26 | N59: 0 | O59: 0 | P59: 0.03
A60: СГР | B60: Хлеб пшеничный (для детского питания) | E60: 50 | F60: 4 | G60: 0 | H60: 7.81 | I60: 39.06 | J60: 0.09 | K60: 0 | L60: 0 | M60: 10.2 | N60: 35.8 | O60: 14.2 | P60: 1
B61: Итого за завтрак | F61: =SUM(F57:F60) -> 21.62 | G61: 16.01 | H61: 64.79 | I61: 498.06 | J61: 0.28 | K61: 26.46 | L61: 46.35 | M61: 62.46 | N61: 255.68 | O61: 70.83 | P61: 2.8
B62: Обед
A63: 22 | B63: Салат Витаминный | E63: 80 | F63: 1.3 | G63: 3.6 | H63: 8.9 | I63: 72 | J63: 0.02 | K63: 12.78 | M63: 17.74 | N63: 17.76 | O63: 10.85 | P63: 0.53
A64: 56 | B64: Бишбармак | E64: 200 | F64: 2.08 | G64: 3.44 | H64: 9.28 | I64: 76.8 | J64: 0.016 | K64: 0.48 | L64: 12.87 | M64: 9.3 | N64: 155.45 | O64: 20.93 | P64: 5.7
A65: 3 | B65: Фрикадельки мясные пф | E65: 90/40 | F65: 12.5 | G65: 10.05 | H65: 8.29 | I65: 152.4 | J65: 0.08 | K65: 1.89 | L65: 48.17 | M65: 29.01 | N65: 197.58 | O65: 16.03 | P65: 1.62
A66: 140 | B66: Каша рисовая рассыпчатая | E66: 155 | F66: 3.58 | G66: 3.92 | H66: 36.75 | I66: 200 | J66: 0.04 | K66: 0 | L66: 15.93 | M66: 5.48 | N66: 55.51 | O66: 29.94 | P66: 0.62
A67: 294 | B67: Компот из сухофруктов | E67: 200 | F67: 0.12 | G67: 0 | H67: 19.4 | I67: 79.6 | J67: 0.01 | K67: 5 | L67: 0 | M67: 9.08 | N67: 12.43 | O67: 4.59 | P67: 0.74
A68: СГР | B68: Хлеб пшеничный | E68: 25 | F68: 2 | G68: 0 | H68: 10 | I68: 50 | J68: 0.04 | K68: 0 | L68: 0 | M68: 5.75 | N68: 21.75 | O68: 8.25 | P68: 0.5
A69: СГР | B69: Хлеб ржаной | E69: 25 | F69: 2 | G69: 0 | H69: 10 | I69: 50 | J69: 0.04 | K69: 0 | L69: 0 | M69: 7.25 | N69: 32.5 | O69: 10.5 | P69: 0.9
B70: Итого за обед | F70: =SUM(F63:F69) -> 23.58 | G70: 21.01 | H70: 102.62 | I70: 680.8 | J70: 0.246 | K70: 20.15 | L70: 76.97 | M70: 83.61 | N70: 492.98 | O70: 101.09 | P70: 10.61
B71: Итого за день | F71: 38.6 | G71: 31.68 | H71: 171.56 | I71: 616.51 | J71: 0.81 | K71: 119.76 | L71: 103.54 | M71: 351.07 | N71: 823.87 | O71: 220.89 | P71: 11.03
A74: День: четверг | E74: Сезон: 01.09 - 01.03 (2024 - 2025г г) | G74: .03 (2025-2026г)
A75: Неделя: 1 | E75: Возраст: с 7 до 11 лет
A76: № рецептуры | B76: Наименование блюда | E76: масса порций | F76: Пищевые вещества (г) | I76: энергетическая ценность | J76: Витамины | M76: Минеральные вещества (мг)
F77: Б | G77: Ж | H77: У | J77: В1 | K77: С | L77: А | M77: Са | N77: Р | O77: Мg | P77: Fe
B79: Завтрак
A80: 3 | B80: Масло сливочное | E80: 10 | F80: 0.1 | G80: 7.13 | H80: 0.1 | I80: 66 | J80: 0 | K80: 0.105 | L80: 31.5 | M80: 150 | N80: 90 | O80: 8.25 | P80: 0.105
A81: 2 | B81: Тефтели пф с томатным соусом | E81: 90/40 | F81: 11.7 | G81: 11.7 | H81: 10.8 | I81: 213.5 | J81: 0.08 | K81: 1.43 | L81: 36.24 | M81: 22.1 | N81: 121.66 | O81: 12.11 | P81: 1.3
A82: 138 | B82: Пюре картофельное | E82: 150 | F82: 3.1 | G82: 4.6 | H82: 20.1 | I82: 137 | J82: 0.12 | K82: 10.38 | L82: 28.8 | M82: 35.6 | N82: 98.22 | O82: 33.03 | P82: 1.2
A83: 283 | B83: Чай с сахаром | E83: 200 | F83: 0.1 | G83: 0 | H83: 9.1 | I83: 35 | J83: 0 | K83: 0 | L83: 0 | M83: 0.26 | N83: 0 | O83: 0 | P83: 0.03
A84: СГР | B84: Хлеб пшеничный для детского питания | E84: 50 | F84: 4 | G84: 0 | H84: 7.81 | I84: 39.06 | J84: 0.07 | K84: 0 | L84: 0 | M84: 9.2 | N84: 34.8 | O84: 13.2 | P84: 0.8
B85: Итого за завтрак | F85: =SUM(F80:F84) -> 19 | G85: 23.43 | H85: 47.91 | I85: 490.56 | J85: 0.27 | K85: 11.915 | L85: 96.54 | M85: 217.16 | N85: 344.68 | O85: 66.59 | P85: 3.435
B86: Обед
A87: 42 | B87: Борщ с капустой и картофелем на мясном бульоне со сметаной | E87: 200/10 | F87: 1.52 | G87: 5.33 | H87: 8.65 | I87: 88.89 | J87: 0.1 | K87: 24.92 | L87: 7.63 | M87: 46.02 | N87: 173.75 | O87: 39.96 | P87: 3.1
A88: 1 | B88: Котлеты мясные с томатным соусом | E88: 90/40 | F88: 11.9 | G88: 11.9 | H88: 10.8 | I88: 213.5 | J88: 0.02 | K88: 0.35 | L88: 17.55 | M88: 8.86 | N88: 0 | O88: 23.6 | P88: 0.57
A89: 173 | B89: Каша гречневая рассыпчатая | E89: 150/5 | F89: 7.56 | G89: 4.7 | H89: 39 | I89: 228.63 | J89: 0.15 | K89: 21.2 | L89: 0 | M89: 17.3 | N89: 152.04 | O89: 35 | P89: 2.27
A90: 294 | B90: Компот из сухофруктов | E90: 200 | F90: 0.12 | G90: 0 | H90: 19.4 | I90: 79.6 | J90: 0.01 | K90: 5 | L90: 0 | M90: 9.08 | N90: 12.43 | O90: 4.59 | P90: 0.74
A91: СГР | B91: Хлеб пшеничный | E91: 25 | F91: 2 | G91: 0 | H91: 10 | I91: 50 | J91: 0.04 | K91: 0 | L91: 0 | M91: 5.75 | N91: 21.75 | O91: 8.25 | P91: 0.5
B92: Хлеб ржаной | E92: 25 | F92: 2 | G92: 0 | H92: 10 | I92: 50 | J92: 0.04 | K92: 0 | L92: 0 | M92: 7.25 | N92: 32.5 | O92: 10.5 | P92: 0.9
B93: Итого за обед | F93: =SUM(F87:F92) -> 25.1 | G93: 21.93 | H93: 97.85 | I93: 710.62 | J93: 0.36 | K93: 51.47 | L93: 25.18 | M93: 94.26 | N93: 392.47 | O93: 121.9 | P93: 8.08
B94: Итого за день | F94: 40.67 | G94: 40.49 | H94: 149.32 | I94: 971.85 | J94: 0.6 | K94: 85.26 | L94: 77.49 | M94: 441.69 | N94: 716.28 | O94: 201.03 | P94: 9.595
A97: День: пятница | E97: Сезон: 01.09 - 01.03 (2024 - 2025г г) | G97: .03 (2025-2026г)
A98: Неделя: 1 | E98: Возраст: с 7 до 11 лет
A99: № рецептуры | B99: Наименование блюда | E99: масса порций | F99: Пищевые вещества (г) | I99: энергетическая ценность | J99: Витамины | M99: Минеральные вещества (мг)
F100: Б | G100: Ж | H100: У | J100: В1 | K100: С | L100: А | M100: Са | N100: Р | O100: Мg | P100: Fe
B102: Завтрак
A103: 1 | B103: Сыр (порциями) | E103: 10 | F103: 2.44 | G103: 2.36 | H103: 0 | I103: 31 | J103: 0.03 | K103: 34.65 | L103: 0 | M103: 39.53 | N103: 30.15 | O103: 15.12 | P103: 0.55
A104: 181 | B104: Каша рисовая молочная | E104: 180/5 | F104: 4.61 | G104: 5.96 | H104: 29.35 | I104: 189.12 | J104: 0.08 | K104: 1.35 | L104: 0 | M104: 14.02 | N104: 178.97 | O104: 41.8 | P104: 1.97
A105: 301 | B105: Напиток "Валетек" | E105: 200 | F105: 0 | G105: 0 | H105: 15.8 | I105: 60 | J105: 0.3 | K105: 11.2 | L105: 170 | M105: 220 | N105: 4.2 | O105: 12.18 | P105: 0.08
A106: СГР | B106: Хлеб пшеничный для детского питания | E106: 50 | F106: 4 | G106: 0 | H106: 7.81 | I106: 39.06 | J106: 0.07 | L106: 0 | M106: 9.2 | N106: 34.8 | O106: 13.2 | P106: 0.8
A107: 281 | B107: Кисломолочный продукт | E107: 200/10 | F107: 5.7 | G107: 6.3 | H107: 17.6 | I107: 151 | J107: 0.06 | K107: 1.37 | L107: 0 | M107: 235.5 | N107: 15.3 | O107: 27.44 | P107: 0.23
B108: Итого за завтрак | F108: =SUM(F103:F107) -> 16.75 | G108: 14.62 | H108: 70.56 | I108: 470.18 | J108: 0.54 | K108: 48.57 | L108: 170 | M108: 518.25 | N108: 263.42 | O108: 109.74 | P108: 3.63
B109: Обед
A110: 54 | B110: Рассольник Ленинградский со сметаной | E110: 200/10 | F110: 4.024 | G110: 9.04 | H110: 25.9 | I110: 119.68 | J110: 0.09 | K110: 1.77 | L110: 10.15 | M110: 22.35 | N110: 175.47 | O110: 27.27 | P110: 2.83
A111: 2 | B111: Тефтели пф с томатным соусом | E111: 90/40 | F111: 11.7 | G111: 11.7 | H111: 10.8 | I111: 213.5 | J111: 0.07 | K111: 0.29 | L111: 0.1 | M111: 34.65 | N111: 1.23 | O111: 28.56 | P111: 1.48
A112: 138 | B112: Картофельное пюре | E112: 150 | F112: 3.1 | G112: 4.6 | H112: 20.1 | I112: 137 | J112: 0.17 | K112: 15.22 | L112: 6.2 | M112: 52.21 | N112: 166.16 | O112: 41.66 | P112: 1.51
A113: 283 | B113: Чай с сахаром | E113: 200 | F113: 0.1 | G113: 0 | H113: 9.1 | I113: 35 | J113: 0 | K113: 0 | L113: 0 | M113: 0.26 | N113: 0 | O113: 0 | P113: 0.03
A114: СГР | B114: Хлеб пшеничный | E114: 25 | F114: 2 | G114: 0 | H114: 10 | I114: 50 | J114: 0.04 | K114: 0 | L114: 0 | M114: 5.75 | N114: 21.75 | O114: 8.25 | P114: 0.5
A115: СГР | B115: Хлеб ржаной | E115: 25 | F115: 2 | G115: 0 | H115: 10 | I115: 50 | J115: 0.04 | K115: 0 | L115: 0 | M115: 7.25 | N115: 32.5 | O115: 10.5 | P115: 0.9
B116: Итого за обед | F116: =SUM(F110:F115) -> 22.924 | G116: 25.34 | H116: 85.9 | I116: 605.18 | J116: 0.41 | K116: 17.28 | L116: 16.45 | M116: 122.47 | N116: 397.11 | O116: 116.24 | P116: 7.25
B117: Итого за день | F117: 36.99 | G117: 37.26 | H117: 153.99 | I117: 1026.11 | J117: 0.76 | K117: 124.81 | L117: 26.35 | M117: 271.91 | N117: 846.37 | O117: 237.56 | P117: 11.74
A121: День: понедельник | E121: Сезон: 01.09 - 01.03 (2024 - 2025г г) | G121: .03 (2025-2026г)
A122: Неделя: 2 | E122: Возраст: с 7 до 11 лет
A123: № рецептуры | B123: Наименование блюда | E123: масса порций | F123: Пищевые вещества (г) | I123: энергетическая ценность | J123: Витамины | M123: Минеральные вещества (мг)
F124: Б | G124: Ж | H124: У | J124: В1 | K124: С | L124: А | M124: Са | N124: Р | O124: Мg | P124: Fe
B126: Завтрак
A127: 3 | B127: Масло сливочное | E127: 10 | F127: 0.1 | G127: 7.13 | H127: 0.1 | I127: 66 | J127: 0 | K127: 0.105 | L127: 31.5 | M127: 150 | N127: 90 | O127: 8.25 | P127: 0.105
A128: 211 | B128: Макаронные изделия с тертым сыром | E128: 166 | F128: 8.93 | G128: 15 | H128: 30 | I128: 157.9 | J128: 0.09 | K128: 0.2 | L128: 28.8 | M128: 306.91 | N128: 55.51 | O128: 26.05 | P128: 1.21
A129: 289 | B129: Какао с молоком | E129: 200 | F129: 3.6 | G129: 3.3 | H129: 13.7 | I129: 98 | J129: 0.03 | K129: 0.52 | L129: 0 | M129: 110.37 | N129: 0 | O129: 26.97 | P129: 0.88
A130: СГР | B130: Хлеб пшеничный для детского питания | E130: 50 | F130: 4 | G130: 0 | H130: 7.81 | I130: 39.06 | J130: 0.07 | K130: 0 | L130: 0 | M130: 9.2 | N130: 34.8 | O130: 13.2 | P130: 0.8
B131: Итого за завтрак | F131: =SUM(F127:F130) -> 16.63 | G131: 25.43 | H131: 51.61 | I131: 360.96 | J131: 0.19 | K131: 0.825 | L131: 60.3 | M131: 576.48 | N131: 180.31 | O131: 74.47 | P131: 2.995
B132: Обед
A133: 44 | B133: Суп из овощей со сметаной | E133: 200/10 | F133: 1.54 | G133: 4.69 | H133: 10.07 | I133: 92.19 | J133: 0.22 | K133: 9.74 | L133: 0.11 | M133: 35.39 | N133: 190.3 | O133: 43.15 | P133: 3.26
A134: 3 | B134: Фрикадельки мясные пф | E134: 90/40 | F134: 12.5 | G134: 10.05 | H134: 8.29 | I134: 152.4 | J134: 0.1 | K134: 18.32 | L134: 51.16 | M134: 56.6 | N134: 197.58 | O134: 39 | P134: 2.25
A135: 140 | B135: Каша рисовая рассыпчатая | E135: 155 | F135: 3.58 | G135: 3.92 | H135: 36.75 | I135: 200 | J135: 0.108 | K135: 0 | L135: 28.8 | M135: 13.38 | N135: 55.51 | O135: 9.82 | P135: 0.99
A136: 283 | B136: Чай с сахаром | E136: 200 | F136: 0.1 | G136: 0 | H136: 9.1 | I136: 35 | J136: 0 | K136: 0 | L136: 0 | M136: 0.26 | N136: 0 | O136: 0 | P136: 0.03
A137: СГР | B137: Хлеб пшеничный | E137: 25 | F137: 2 | G137: 0 | H137: 10 | I137: 50 | J137: 0.04 | K137: 0 | L137: 0 | M137: 5.75 | N137: 21.75 | O137: 8.25 | P137: 0.5
A138: СГР | B138: Хлеб ржаной | E138: 25 | F138: 2 | G138: 0 | H138: 10 | I138: 50 | J138: 0.04 | K138: 0 | L138: 0 | M138: 7.25 | N138: 32.5 | O138: 10.5 | P138: 0.9
B139: Итого за обед | F139: =SUM(F133:F138) -> 21.72 | G139: 18.66 | H139: 84.21 | I139: 579.59 | J139: 0.508 | K139: 28.06 | L139: 80.07 | M139: 118.63 | N139: 497.64 | O139: 110.72 | P139: 7.93
B140: Итого за день | F140: 35.45 | G140: 29.63 | H140: 142.34 | I140: 933.55 | J140: 0.958 | K140: 67.28 | L140: 146.16 | M140: 410.43 | N140: 977.97 | O140: 304.51 | P140: 15.165
A143: День: вторник | E143: Сезон: 01.09 - 01.03 (2024 - 2025г г) | G143: .03 (2025-2026г)
A144: Неделя: 2 | E144: Возраст: с 7 до 11 лет
A145: № рецептуры | B145: Наименование блюда | E145: масса порций | F145: Пищевые вещества (г) | I145: энергетическая ценность | J145: Витамины | M145: Минеральные вещества (мг)
F146: Б | G146: Ж | H146: У | J146: В1 | K146: С | L146: А | M146: Са | N146: Р | O146: Мg | P146: Fe
B148: Завтрак
A149: 2 | B149: Тефтели мясные пф | E149: 90/40 | F149: 11.7 | G149: 11.7 | H149: 10.8 | I149: 213.5 | J149: 0.08 | K149: 1.43 | L149: 36.24 | M149: 22.1 | N149: 178.97 | O149: 12.11 | P149: 1.3
A150: 173 | B150: Каша гречневая рассыпчатая | E150: 150/5 | F150: 7.56 | G150: 4.7 | H150: 39 | I150: 228.63 | J150: 0.17 | K150: 26.11 | L150: 28.8 | M150: 43.14 | N150: 98.22 | O150: 33.03 | P150: 1.2
A151: 283 | B151: Чай с сахаром | E151: 200 | F151: 0.1 | G151: 0 | H151: 9.1 | I151: 35 | J151: 0 | K151: 0 | L151: 0 | M151: 0.26 | N151: 0 | O151: 0 | P151: 0.03
A152: СГР | B152: Хлеб пшеничный (для детского питания) | E152: 50 | F152: 4 | G152: 0 | H152: 7.81 | I152: 39.06 | J152: 0.09 | K152: 0 | L152: 0 | M152: 10.2 | N152: 35.8 | O152: 14.2 | P152: 1
B153: Итого за завтрак | F153: =SUM(F149:F152) -> 23.36 | G153: 16.4 | H153: 66.71 | I153: 516.19 | J153: 0.34 | K153: 27.54 | L153: 65.04 | M153: 75.7 | N153: 312.99 | O153: 59.34 | P153: 3.53
B154: Обед
A155: 23 | B155: Салат из свеклы с растительным маслом | E155: 80 | F155: 1 | G155: 5.9 | H155: 4.8 | I155: 76 | J155: 0.03 | K155: 2.64 | L155: 0 | M155: 14.31 | N155: 29.16 | O155: 20.06 | P155: 0.38
A156: 56 | B156: Бишбармак | E156: 200 | F156: 2.08 | G156: 3.44 | H156: 9.28 | I156: 76.8 | J156: 0.016 | K156: 0.48 | L156: 12.87 | M156: 9.3 | N156: 57.52 | O156: 20.93 | P156: 5.7
A157: 1 | B157: Котлеты мясные с томатным соусом | E157: 90/40 | F157: 11.7 | G157: 11.7 | H157: 10.8 | I157: 213.5 | J157: 0.08 | K157: 1.43 | L157: 36.24 | M157: 22.1 | N157: 101.41 | O157: 12.11 | P157: 1.3
A158: 168 | B158: Пюре гороховое | E158: 150/5 | F158: 14.8 | G158: 4.8 | H158: 35 | I158: 243.3 | J158: 0.5 | K158: 0 | L158: 1 | M158: 82.47 | N158: 0 | O158: 74.73 | P158: 4.85
A159: 283 | B159: Чай с сахаром | E159: 200 | F159: 0.1 | G159: 0 | H159: 9.1 | I159: 35 | J159: 0 | K159: 0 | L159: 0 | M159: 0.26 | N159: 0 | O159: 0 | P159: 0.03
A160: СГР | B160: Хлеб пшеничный | E160: 25 | F160: 2 | G160: 0 | H160: 10 | I160: 50 | J160: 0.04 | K160: 0 | L160: 0 | M160: 5.75 | N160: 21.75 | O160: 8.25 | P160: 0.5
A161: СГР | B161: Хлеб ржаной | E161: 25 | F161: 2 | G161: 0 | H161: 10 | I161: 50 | J161: 0.04 | K161: 0 | L161: 0 | M161: 7.25 | N161: 32.5 | O161: 10.5 | P161: 0.9
B162: Итого за обед | F162: =SUM(F155:F161) -> 33.68 | G162: 25.84 | H162: 88.98 | I162: 744.6 | J162: 0.706 | K162: 4.55 | L162: 50.11 | M162: 141.44 | N162: 242.34 | O162: 146.58 | P162: 13.66
B163: Итого за день | F163: 58.51 | G163: 43.87 | H163: 169.85 | I163: 1348.46 | J163: 0.675 | K163: 105.48 | L163: 52.26 | M163: 317.57 | N163: 721.83 | O163: 221.52 | P163: 9.96
A166: День: среда | E166: Сезон: 01.09 - 01.03 (2024 - 2025г г) | G166: .03 (2025-2026г)
A167: Неделя: 2 | E167: Возраст: с 7 до 11 лет
A168: № рецептуры | B168: Наименование блюда | E168: масса порций | F168: Пищевые вещества (г) | I168: энергетическая ценность | J168: Витамины | M168: Минеральные вещества (мг)
F169: Б | G169: Ж | H169: У | J169: В1 | K169: С | L169: А | M169: Са | N169: Р | O169: Мg | P169: Fe
B171: Завтрак
A172: 1 | B172: Котлеты мясные с томатным соусом | E172: 90/40 | F172: 11.7 | G172: 11.7 | H172: 10.8 | I172: 213.5 | J172: 0.08 | K172: 1.43 | L172: 36.24 | M172: 22.1 | N172: 162.2 | O172: 12.11 | P172: 1.3
A173: 184 | B173: Каша ячневая рассыпчатая | E173: 150/5 | F173: 4.9 | G173: 3.7 | H173: 30.9 | I173: 179 | J173: 0.15 | K173: 8.48 | L173: 54.4 | M173: 107.78 | N173: 3 | O173: 58.6 | P173: 1.56
A174: 283 | B174: Чай с сахаром | E174: 200 | F174: 0.1 | G174: 0 | H174: 9.1 | I174: 35 | J174: 0 | K174: 0 | L174: 0 | M174: 0.26 | N174: 0 | O174: 0 | P174: 0.03
A175: СГР | B175: Хлеб пшеничный (для детского питания) | E175: 50 | F175: 4 | G175: 0 | H175: 7.81 | I175: 39.06 | J175: 0.09 | K175: 0 | L175: 0 | M175: 10.2 | N175: 35.8 | O175: 14.2 | P175: 1
B176: Итого за завтрак | F176: =SUM(F172:F175) -> 20.7 | G176: 15.4 | H176: 58.61 | I176: 466.56 | J176: 0.32 | K176: 9.91 | L176: 90.64 | M176: 140.34 | N176: 201 | O176: 84.91 | P176: 3.89
B177: Обед
A178: 19 | B178: Салат из моркови | E178: 80 | F178: 1.6 | G178: 7.2 | H178: 4.23 | I178: 74.4 | J178: 0.03 | K178: 2.64 | L178: 0 | M178: 14.31 | N178: 29.16 | O178: 20.06 | P178: 0.38
A179: 53 | B179: Щи из свежей капусты со сметаной | E179: 200/10 | F179: 1.67 | G179: 5.06 | H179: 8.51 | I179: 86.26 | J179: 0.07 | K179: 15.21 | L179: 7.5 | M179: 32.53 | N179: 57.52 | O179: 25.98 | P179: 1.27
A180: 2 | B180: Тефтели мясные пф | E180: 90/40 | F180: 11.7 | G180: 11.7 | H180: 10.8 | I180: 213.5 | J180: 0.08 | K180: 1.43 | L180: 36.24 | M180: 22.1 | N180: 178.97 | O180: 12.11 | P180: 1.3
A181: 212 | B181: Макаронные изделия отварные с маслом | E181: 150/5 | F181: 5.82 | G181: 4.31 | H181: 37.08 | I181: 210.5 | J181: 0.17 | K181: 26.11 | L181: 28.8 | M181: 43.14 | N181: 98.22 | O181: 33.03 | P181: 1.2
A182: 294 | B182: Компот из сухофруктов | E182: 200 | F182: 0.12 | G182: 0 | H182: 19.4 | I182: 79.6 | J182: 0.01 | K182: 20.2 | L182: 0 | M182: 6.76 | N182: 4.4 | O182: 3.6 | P182: 0.92
A183: СГР | B183: Хлеб пшеничный | E183: 25 | F183: 2 | G183: 0 | H183: 10 | I183: 50 | J183: 0.04 | K183: 0 | L183: 0 | M183: 5.75 | N183: 21.75 | O183: 8.25 | P183: 0.5
A184: СГР | B184: Хлеб ржаной | E184: 25 | F184: 2 | G184: 0 | H184: 10 | I184: 50 | J184: 0.04 | K184: 0 | L184: 0 | M184: 7.25 | N184: 32.5 | O184: 10.5 | P184: 0.9
B185: Итого за обед | F185: =SUM(F178:F184) -> 24.91 | G185: 28.27 | H185: 100.02 | I185: 764.26 | J185: 0.44 | K185: 65.59 | L185: 72.54 | M185: 131.84 | N185: 422.52 | O185: 113.53 | P185: 6.47
B186: Итого за день | F186: 41.31 | G186: 45.4 | H186: 160.79 | I186: 1393.11 | J186: 0.645 | K186: 85.5 | L186: 91.31 | M186: 292.27 | N186: 637.07 | O186: 190.21 | P186: 8.99
A189: День: четверг | E189: Сезон: 01.09 - 01.03 (2024 - 2025г г) | G189: .03 (2025-2026г)
A190: Неделя: 2 | E190: Возраст: с 7 до 11 лет
A191: № рецептуры | B191: Наименование блюда | E191: масса порций | F191: Пищевые вещества (г) | I191: энергетическая ценность | J191: Витамины | M191: Минеральные вещества (мг)
F192: Б | G192: Ж | H192: У | J192: В1 | K192: С | L192: А | M192: Са | N192: Р | O192: Мg | P192: Fe
B194: Завтрак
A195: 3 | B195: Фрикадельки мясные с томатным соусом | E195: 90/40 | F195: 12.5 | G195: 10.05 | H195: 8.29 | I195: 152.4 | J195: 0.01 | K195: 0.25 | L195: 12.54 | M195: 6.33 | N195: 240.53 | O195: 16.86 | P195: 0.41
A196: 138 | B196: Картофельное пюре | E196: 150 | F196: 3.1 | G196: 4.6 | H196: 20.1 | I196: 137 | J196: 0.17 | K196: 15.22 | L196: 6.2 | M196: 52.21 | N196: 166.16 | O196: 41.66 | P196: 1.51
A197: 285 | B197: Чай с лимоном и сахаром | E197: 207 | F197: 0.07 | G197: 0.01 | H197: 15.31 | I197: 61.62 | J197: 0 | K197: 1.12 | L197: 0 | M197: 2.73 | N197: 0 | O197: 0.73 | P197: 0.06
A198: СГР | B198: Хлеб пшеничный для детского питания | E198: 50 | F198: 4 | G198: 0 | H198: 7.81 | I198: 39.06 | J198: 0.07 | K198: 0 | L198: 0 | M198: 9.2 | N198: 34.8 | O198: 13.2 | P198: 0.8
B199: Итого за завтрак | F199: =SUM(F195:F198) -> 19.67 | G199: 14.66 | H199: 51.51 | I199: 390.08 | J199: 0.25 | K199: 16.59 | L199: 18.74 | M199: 70.47 | N199: 441.49 | O199: 72.45 | P199: 2.78
B200: Обед
A201: 6 | B201: Салат из белокочанной капусты с морковью | E201: 80 | F201: 1.47 | G201: 3.2 | H201: 7.47 | I201: 66.26 | J201: 0.02 | K201: 22.98 | M201: 25.9 | N201: 19.04 | O201: 10.34 | P201: 0.35
A202: 68 | B202: Свекольник со сметаной | E202: 200/10 | F202: 1.93 | G202: 6.34 | H202: 10.05 | I202: 104.16 | J202: 0.05 | K202: 4.84 | L202: 7.62 | M202: 28.27 | N202: 171.85 | O202: 24.9 | P202: 1.21
A203: 2 | B203: Тефтели пф с томатным соусом | E203: 90/40 | F203: 11.7 | G203: 11.7 | H203: 10.8 | I203: 213.5 | J203: 0.08 | K203: 1.43 | L203: 36.24 | M203: 22.1 | N203: 197.58 | O203: 12.11 | P203: 1.3
A204: 173 | B204: Каша гречневая рассыпчатая | E204: 150/5 | F204: 7.56 | G204: 4.7 | H204: 39 | I204: 228.63 | J204: 0.17 | K204: 26.11 | L204: 28.8 | M204: 43.14 | N204: 98.22 | O204: 33.03 | P204: 1.2
A205: 311 | B205: Витаминизированный кисель | E205: 200 | F205: 0.25 | G205: 0 | H205: 4.8 | I205: 20 | J205: 0.01 | K205: 20.2 | L205: 0 | M205: 6.76 | N205: 4.4 | O205: 3.6 | P205: 0.92
A206: СГР | B206: Хлеб пшеничный | E206: 25 | F206: 2 | G206: 0 | H206: 10 | I206: 50 | J206: 0.04 | K206: 0 | L206: 0 | M206: 5.75 | N206: 21.75 | O206: 8.25 | P206: 0.5
A207: СГР | B207: Хлеб ржаной | E207: 25 | F207: 2 | G207: 0 | H207: 10 | I207: 50 | J207: 0.04 | K207: 0 | L207: 0 | M207: 7.25 | N207: 32.5 | O207: 10.5 | P207: 0.9
B208: Итого за обед | F208: =SUM(F201:F207) -> 26.91 | G208: 25.94 | H208: 92.12 | I208: 732.55 | J208: 0.41 | K208: 75.56 | L208: 72.66 | M208: 139.17 | N208: 545.34 | O208: 102.73 | P208: 6.38
B209: Итого за день | F209: 43.64 | G209: 37.9 | H209: 138.91 | I209: 1087.75 | J209: 0.68 | K209: 95.45 | L209: 129.53 | M209: 509.89 | N209: 906.35 | O209: 195.84 | P209: 11.055
A212: День: пятница | E212: Сезон: 01.09 - 01.03 (2024 - 2025г г) | G212: .03 (2025-2026г)
A213: Неделя: 2 | E213: Возраст: с 7 до 11 лет
A214: № рецептуры | B214: Наименование блюда | E214: масса порций | F214: Пищевые вещества (г) | I214: энергетическая ценность | J214: Витамины | M214: Минеральные вещества (мг)
F215: Б | G215: Ж | H215: У | J215: В1 | K215: С | L215: А | M215: Са | N215: Р | O215: Мg | P215: Fe
B217: Завтрак
A218: 196 | B218: Каша молочная "Дружба" с маслом | E218: 180/5 | F218: 5.94 | G218: 7.56 | H218: 31.84 | I218: 218.76 | J218: 0.14 | K218: 1.17 | L218: 38 | M218: 123.74 | N218: 181.86 | O218: 34.2 | P218: 1.81
A219: 3 | B219: Масло сливочное | E219: 10 | F219: 0.1 | G219: 7.13 | H219: 0.1 | I219: 66 | J219: 0 | K219: 0.105 | L219: 31.5 | M219: 150 | N219: 90 | O219: 8.25 | P219: 0.105
A220: 1 | B220: Сыр (порциями) | E220: 10 | F220: 2.44 | G220: 2.36 | H220: 0 | I220: 31 | J220: 0.02 | K220: 0.11 | L220: 0 | M220: 91.52 | N220: 90 | O220: 9.7 | P220: 0.04
A221: 283 | B221: Чай с сахаром | E221: 200 | F221: 0.1 | G221: 0 | H221: 9.1 | I221: 35 | J221: 0 | K221: 0 | L221: 0 | M221: 0.26 | N221: 0 | O221: 0 | P221: 0.03
A222: СГР | B222: Хлеб пшеничный (для детского питания) | E222: 50 | F222: 4 | G222: 0 | H222: 7.81 | I222: 39.06 | J222: 0.09 | K222: 0 | L222: 0 | M222: 10.2 | N222: 35.8 | O222: 14.2 | P222: 1
A223: 281 | B223: Кисломолочный продукт | E223: 200/10 | F223: 5.7 | G223: 6.3 | H223: 17.6 | I223: 151 | J223: 0.06 | K223: 1.37 | L223: 10.9 | M223: 235.5 | N223: 0 | O223: 27.44 | P223: 0.23
B224: Итого за завтрак | F224: =SUM(F218:F223) -> 18.28 | G224: 23.35 | H224: 66.45 | I224: 540.82 | J224: 0.31 | K224: 2.755 | L224: 80.4 | M224: 611.22 | N224: 397.66 | O224: 93.79 | P224: 3.215
B225: Обед
A226: 63 | B226: Суп картофельный с горохом | E226: 200 | F226: 7.9 | G226: 4.3 | H226: 31.5 | I226: 199 | J226: 0.22 | K226: 4.66 | L226: 7.5 | M226: 32.23 | N226: 41.72 | O226: 39.84 | P226: 2.3
A227: 1 | B227: Котлеты мясные с томатным соусом | E227: 90/40 | F227: 11.7 | G227: 11.7 | H227: 10.8 | I227: 213.5 | J227: 0.08 | K227: 1.43 | L227: 36.24 | M227: 22.1 | N227: 121.66 | O227: 12.11 | P227: 1.3
A228: 212 | B228: Макаронные изделия отварные с маслом | E228: 150/5 | F228: 5.82 | G228: 4.31 | H228: 37.08 | I228: 210.5 | J228: 0.17 | K228: 26.11 | L228: 28.8 | M228: 43.14 | N228: 98.22 | O228: 33.03 | P228: 1.2
A229: 295 | B229: Компот из плодов яблок | E229: 200 | F229: 0.2 | G229: 0 | H229: 17.2 | I229: 68 | J229: 0.01 | K229: 20.2 | L229: 0 | M229: 6.76 | N229: 4.4 | O229: 3.6 | P229: 0.92
A230: СГР | B230: Хлеб пшеничный | E230: 25 | F230: 2 | G230: 0 | H230: 10 | I230: 50 | J230: 0.04 | K230: 0 | L230: 0 | M230: 5.75 | N230: 21.75 | O230: 8.25 | P230: 0.5
A231: СГР | B231: Хлеб ржаной | E231: 25 | F231: 2 | G231: 0 | H231: 10 | I231: 50 | J231: 0.04 | K231: 0 | L231: 0 | M231: 7.25 | N231: 32.5 | O231: 10.5 | P231: 0.9
B232: Итого за обед | F232: =SUM(F226:F231) -> 29.62 | G232: 20.31 | H232: 116.58 | I232: 791 | J232: 0.56 | K232: 52.4 | L232: 72.54 | M232: 117.23 | N232: 320.25 | O232: 107.33 | P232: 7.12
B233: Итого за день | F233: 45.2 | G233: 40.96 | H233: 180.56 | I233: 1282.57 | J233: 0.59 | K233: 55.37 | L233: 109.8 | M233: 260.54 | N233: 640.49 | O233: 178.36 | P233: 8.54
... 29 more rows

Sheet с 11 до 18 лет
A2: День: понедельник | E2: Сезон: 01.09 - 01.03 (2025 - 2026г г)
A3: Неделя: 1 | E3: Возраст: с 11 до 18 лет
A4: № рецептуры | B4: Наименование блюда | E4: масса порций | F4: Пищевые вещества (г) | I4: энергетическая ценность | J4: Витамины | M4: Минеральные вещества (мг)
F5: Б | G5: Ж | H5: У | J5: В1 | K5: С | L5: А | M5: Са | N5: Р | O5: Мg | P5: Fe
B7: Завтрак
A8: 19 | B8: Салат из моркови | E8: 100 | F8: 2 | G8: 9 | H8: 5.29 | I8: 93 | J8: 0.04 | K8: 1.77 | L8: 27.55 | M8: 20.7 | N8: 295.62 | O8: 28.43 | P8: 0.55
A9: 1 | B9: Котлеты мясные с томатным соусом | E9: 100/40 | F9: 14 | G9: 14 | H9: 12.95 | I9: 306.6 | J9: 0.12 | K9: 2.37 | L9: 60.4 | M9: 36.66 | N9: 162.2 | O9: 20.17 | P9: 1.48
A10: 184 | B10: Каша ячневая рассыпчатая | E10: 180/5 | F10: 5.88 | G10: 4.44 | H10: 37.08 | I10: 214.8 | J10: 0.18 | K10: 10.17 | L10: 40 | M10: 107.91 | N10: 3 | O10: 70.38 | P10: 1.88
A11: 285 | B11: Чай с лимоном и сахаром | E11: 200/7 | F11: 0.07 | G11: 0.01 | H11: 15.31 | I11: 61.62 | J11: 0 | K11: 1.12 | L11: 0 | M11: 2.73 | N11: 0 | O11: 0.73 | P11: 0.06
A12: СГР | B12: Хлеб пшеничный (для детского питания) | E12: 50 | F12: 4 | G12: 0 | H12: 7.81 | I12: 39.06 | J12: 0.09 | K12: 0 | L12: 0 | M12: 10.2 | N12: 35.8 | O12: 14.2 | P12: 1
B13: Итого за завтрак | F13: =SUM(F8:F12) -> 25.95 | G13: 27.45 | H13: 78.44 | I13: 715.08 | J13: 0.43 | K13: 15.43 | L13: 127.95 | M13: 178.2 | N13: 496.62 | O13: 133.91 | P13: 4.97
B14: Обед
A15: 27 | B15: Салат из свеклы с яблоками | E15: 100 | F15: 0.8 | G15: 5.1 | H15: 7.4 | I15: 78 | J15: 0.03 | K15: 5.64 | L15: 0 | M15: 13.2 | N15: 24.49 | O15: 11.08 | P15: 0.47
A16: 63 | B16: Суп картофельный с горохом и гренками | E16: 250 | F16: 9.88 | G16: 5.3 | H16: 39.38 | I16: 248.75 | J16: 0.08 | K16: 2.99 | L16: 25.76 | M16: 20.55 | N16: 134.18 | O16: 23.56 | P16: 2.15
A17: 2 | B17: Тефтели мясные пф | E17: 100/40 | F17: 14 | G17: 14 | H17: 12.95 | I17: 306.6 | J17: 0.1 | K17: 1.9 | L17: 48.32 | M17: 29.33 | N17: 178.97 | O17: 41.8 | P17: 1.97
A18: 224 | B18: Рагу овощное | E18: 180 | F18: 4.05 | G18: 10.35 | H18: 18.18 | I18: 181.8 | J18: 0.04 | K18: 8.57 | L18: 11.63 | M18: 39.14 | N18: 52.5 | O18: 27 | P18: 0.83
A19: 311 | B19: Витаминизированный кисель | E19: 200 | F19: 0.25 | G19: 0 | H19: 4.8 | I19: 20 | J19: 0.01 | K19: 20.2 | L19: 0 | M19: 6.76 | N19: 4.4 | O19: 3.6 | P19: 0.92
B20: Хлеб пшеничный | E20: 25 | F20: 2 | G20: 0 | H20: 10 | I20: 50 | J20: 0.04 | K20: 0 | L20: 0 | M20: 5.75 | N20: 21.75 | O20: 8.25 | P20: 0.5
B21: Хлеб ржаной | E21: 25 | F21: 2 | G21: 0 | H21: 10 | I21: 50 | J21: 0.04 | K21: 0 | L21: 0 | M21: 7.25 | N21: 32.5 | O21: 10.5 | P21: 0.9
B22: Итого за обед | F22: =SUM(F15:F21) -> 32.98 | G22: 34.75 | H22: 102.71 | I22: 935.15 | J22: 0.34 | K22: 39.3 | L22: 85.71 | M22: 121.98 | N22: 448.79 | O22: 125.79 | P22: 7.74
B23: Итого за день | F23: 60.63 | G23: 164.5 | H23: 195.05 | I23: 1626.03 | J23: 0.71 | K23: 31.27 | L23: 124.2 | M23: 312.17 | N23: 818.22 | O23: 183.74 | P23: 10.1
A27: День: вторник | E27: Сезон: 01.09 - 01.03 (2025 - 2026г г)
A28: Неделя: 1 | E28: Возраст: с 11 до 18 лет
A30: № рецептуры | B30: Наименование блюда | E30: масса порций | F30: Пищевые вещества (г) | I30: энергетическая ценность | J30: Витамины | M30: Минеральные вещества (мг)
F31: Б | G31: Ж | H31: У | J31: В1 | K31: С | L31: А | M31: Са | N31: Р | O31: Мg | P31: Fe
B33: Завтрак
A34: 3 | B34: Фрикадельки мясные пф | E34: 100/40 | F34: 15.5 | G34: 12.4 | H34: 10.22 | I34: 188.04 | J34: 0.02 | K34: 0.35 | L34: 17.55 | M34: 8.86 | N34: 197.58 | O34: 23.6 | P34: 2.25
A35: 140 | B35: Каша рисовая рассыпчатая | E35: 185 | F35: 4.3 | G35: 4.7 | H35: 44.1 | I35: 240 | J35: 0.108 | K35: 0 | L35: 28.8 | M35: 13.38 | N35: 55.51 | O35: 9.82 | P35: 0.99
A36: 301 | B36: Напиток "Валетек" | E36: 200 | F36: 0 | G36: 0 | H36: 15.8 | I36: 60 | J36: 0.3 | K36: 11.2 | L36: 170 | M36: 220 | N36: 4.2 | O36: 12.18 | P36: 0.08
A37: СГР | B37: Хлеб пшеничный для детского питания | E37: 50 | F37: 4 | G37: 0 | H37: 7.81 | I37: 39.06 | J37: 0.07 | K37: 0 | L37: 0 | M37: 9.2 | N37: 34.8 | O37: 13.2 | P37: 0.8
B38: Итого за завтрак | F38: =SUM(F34:F37) -> 23.8 | G38: 17.1 | H38: 77.93 | I38: 527.1 | J38: 0.498 | K38: 11.55 | L38: 216.35 | M38: 251.44 | N38: 292.09 | O38: 58.8 | P38: 4.12
B39: Обед
A40: 53 | B40: Щи из свежей капусты | E40: 250/10 | F40: 2.09 | G40: 6.33 | H40: 10.64 | I40: 107.83 | J40: 0.15 | K40: 26.8 | L40: 9.51 | M40: 41.35 | N40: 198.48 | O40: 42.95 | P40: 3.15
A41: 1 | B41: Котлеты мясные с томатным соусом | E41: 100/40 | F41: 14 | G41: 14 | H41: 12.95 | I41: 306.6 | J41: 0.12 | K41: 2.37 | L41: 60.4 | M41: 36.66 | N41: 101.41 | O41: 20.17 | P41: 2.17
A42: 212 | B42: Макаронные изделия отварные с маслом | E42: 180/5 | F42: 6.97 | G42: 4.44 | H42: 44.48 | I42: 245.99 | J42: 0.09 | K42: 0 | L42: 0 | M42: 14.03 | N42: 0 | O42: 11.09 | P42: 1.12
A43: 283 | B43: Чай с сахаром | E43: 200 | F43: 0.1 | G43: 0 | H43: 9.1 | I43: 35 | J43: 0 | K43: 0 | L43: 0 | M43: 0.26 | N43: 0 | O43: 0 | P43: 0.03
A44: СГР | B44: Хлеб пшеничный | E44: 25 | F44: 2 | G44: 0 | H44: 10 | I44: 50 | J44: 0.04 | K44: 0 | L44: 0 | M44: 5.75 | N44: 21.75 | O44: 8.25 | P44: 0.5
A45: СГР | B45: Хлеб ржаной | E45: 25 | F45: 2 | G45: 0 | H45: 10 | I45: 50 | J45: 0.04 | K45: 0 | L45: 0 | M45: 7.25 | N45: 32.5 | O45: 10.5 | P45: 0.9
B46: Итого за обед | F46: =SUM(F40:F45) -> 27.16 | G46: 24.77 | H46: 97.17 | I46: 795.42 | J46: 0.44 | K46: 29.17 | L46: 69.91 | M46: 105.3 | N46: 354.14 | O46: 92.96 | P46: 7.87
B47: Итого за день | F47: 43.36 | G47: 47.02 | H47: 176.75 | I47: 1308.43 | J47: 0.663 | K47: 114.15 | L47: 120.31 | M47: 419.2 | N47: 871.8 | O47: 198.67 | P47: 10.63
A50: День: среда | E50: Сезон: 01.09 - 01.03 (2025 - 2026г г)
A51: Неделя: 1 | E51: Возраст: с 11 до 18 лет
A52: № рецептуры | B52: Наименование блюда | E52: масса порций | F52: Пищевые вещества (г) | I52: энергетическая ценность | J52: Витамины | M52: Минеральные вещества (мг)
F53: Б | G53: Ж | H53: У | J53: В1 | K53: С | L53: А | M53: Са | N53: Р | O53: Мg | P53: Fe
B55: Завтрак
A56: 1 | B56: Котлеты мясные с томатным соусом | E56: 100/40 | F56: 14 | G56: 14 | H56: 12.95 | I56: 306.6 | J56: 0.12 | K56: 2.37 | L56: 60.4 | M56: 36.66 | N56: 121.66 | O56: 20.17 | P56: 2.17
A57: 212 | B57: Макаронные изделия отварные с маслом | E57: 180/5 | F57: 6.97 | G57: 4.44 | H57: 44.48 | I57: 245.99 | J57: 0.17 | K57: 26.11 | L57: 28.8 | M57: 43.14 | N57: 98.22 | O57: 33.03 | P57: 1.2
A58: 283 | B58: Чай с сахаром | E58: 200 | F58: 0.1 | G58: 0 | H58: 9.1 | I58: 35 | J58: 0 | K58: 0 | L58: 0 | M58: 0.26 | N58: 0 | O58: 0 | P58: 0.03
A59: СГР | B59: Хлеб пшеничный (для детского питания) | E59: 50 | F59: 4 | G59: 0 | H59: 7.81 | I59: 39.06 | J59: 0.09 | K59: 0 | L59: 0 | M59: 10.2 | N59: 35.8 | O59: 14.2 | P59: 1
B60: Итого за завтрак | F60: =SUM(F56:F59) -> 25.07 | G60: 18.44 | H60: 74.34 | I60: 626.65 | J60: 0.38 | K60: 28.48 | L60: 89.2 | M60: 90.26 | N60: 255.68 | O60: 67.4 | P60: 4.4
B61: Обед
A62: 22 | B62: Салат Витаминный | E62: 100 | F62: 1.6 | G62: 4.6 | H62: 11.1 | I62: 90 | J62: 0.02 | K62: 12.78 | M62: 17.74 | N62: 17.76 | O62: 10.85 | P62: 0.53
A63: 56 | B63: Бишбармак | E63: 250 | F63: 2.6 | G63: 4.3 | H63: 11.6 | I63: 96 | J63: 0.02 | K63: 0.6 | L63: 16.08 | M63: 11.61 | N63: 155.45 | O63: 7.18 | P63: 0.41
A64: 3 | B64: Фрикадельки мясные пф | E64: 100/40 | F64: 15.5 | G64: 12.4 | H64: 10.22 | I64: 188.04 | J64: 0.02 | K64: 0.35 | L64: 17.55 | M64: 8.86 | N64: 197.58 | O64: 23.6 | P64: 0.57
A65: 140 | B65: Каша рисовая рассыпчатая | E65: 185 | F65: 4.3 | G65: 4.7 | H65: 44.1 | I65: 240 | J65: 0.04 | K65: 0 | L65: 15.93 | M65: 5.48 | N65: 55.51 | O65: 29.94 | P65: 0.62
A66: 294 | B66: Компот из сухофруктов | E66: 200 | F66: 0.12 | G66: 0 | H66: 19.4 | I66: 79.6 | J66: 0.01 | K66: 5 | L66: 0 | M66: 9.08 | N66: 12.43 | O66: 4.59 | P66: 0.74
A67: СГР | B67: Хлеб пшеничный | E67: 25 | F67: 2 | G67: 0 | H67: 10 | I67: 50 | J67: 0.04 | K67: 0 | L67: 0 | M67: 5.75 | N67: 21.75 | O67: 8.25 | P67: 0.5
A68: СГР | B68: Хлеб ржаной | E68: 25 | F68: 2 | G68: 0 | H68: 10 | I68: 50 | J68: 0.04 | K68: 0 | L68: 0 | M68: 7.25 | N68: 32.5 | O68: 10.5 | P68: 0.9
B69: Итого за обед | F69: =SUM(F62:F68) -> 28.12 | G69: 26 | H69: 116.42 | I69: 793.64 | J69: 0.19 | K69: 18.73 | L69: 49.56 | M69: 65.77 | N69: 492.98 | O69: 94.91 | P69: 4.27
B70: Итого за день | F70: 49.4 | G70: 40.29 | H70: 196.32 | I70: 1337.83 | J70: 0.81 | K70: 119.76 | L70: 103.54 | M70: 351.07 | N70: 823.87 | O70: 220.89 | P70: 11.03
A73: День: четверг | E73: Сезон: 01.09 - 01.03 (2025 - 2026г г)
A74: Неделя: 1 | E74: Возраст: с 11 до 18 лет
A75: № рецептуры | B75: Наименование блюда | E75: масса порций | F75: Пищевые вещества (г) | I75: энергетическая ценность | J75: Витамины | M75: Минеральные вещества (мг)
F76: Б | G76: Ж | H76: У | J76: В1 | K76: С | L76: А | M76: Са | N76: Р | O76: Мg | P76: Fe
B78: Завтрак
A79: 3 | B79: Масло сливочное | E79: 10 | F79: 0.1 | G79: 7.13 | H79: 0.1 | I79: 66 | J79: 0 | K79: 0.105 | L79: 31.5 | M79: 150 | N79: 90 | O79: 8.25 | P79: 0.105
A80: 2 | B80: Тефтели пф с томатным соусом | E80: 100/40 | F80: 14 | G80: 14 | H80: 12.95 | I80: 306.6 | J80: 0.1 | K80: 1.9 | L80: 48.32 | M80: 29.33 | N80: 121.66 | O80: 16.14 | P80: 1.74
A81: 138 | B81: Пюре картофельное | E81: 180 | F81: 3.6 | G81: 5.55 | H81: 24.15 | I81: 163.5 | J81: 0.12 | K81: 10.38 | L81: 28.8 | M81: 35.6 | N81: 98.22 | O81: 33.03 | P81: 1.2
A82: 283 | B82: Чай с сахаром | E82: 200 | F82: 0.1 | G82: 0 | H82: 9.1 | I82: 35 | J82: 0 | K82: 0 | L82: 0 | M82: 0.26 | N82: 0 | O82: 0 | P82: 0.03
A83: СГР | B83: Хлеб пшеничный для детского питания | E83: 50 | F83: 4 | G83: 0 | H83: 7.81 | I83: 39.06 | J83: 0.07 | K83: 0 | L83: 0 | M83: 9.2 | N83: 34.8 | O83: 13.2 | P83: 0.8
B84: Итого за завтрак | F84: =SUM(F79:F83) -> 21.8 | G84: 26.68 | H84: 54.11 | I84: 610.16 | J84: 0.29 | K84: 12.385 | L84: 108.62 | M84: 224.39 | N84: 344.68 | O84: 70.62 | P84: 3.875
B85: Обед
A86: 42 | B86: Борщ с капустой и картофелем на мясном бульоне со сметаной | E86: 250/10 | F86: 1.9 | G86: 6.66 | H86: 10.81 | I86: 111.1 | J86: 0.1 | K86: 24.92 | L86: 7.63 | M86: 46.02 | N86: 173.75 | O86: 39.96 | P86: 3.1
A87: 1 | B87: Котлеты мясные с томатным соусом | E87: 100/40 | F87: 14 | G87: 14 | H87: 12.95 | I87: 306.6 | J87: 0.12 | K87: 2.37 | L87: 60.4 | M87: 36.66 | N87: 0 | O87: 20.17 | P87: 2.17
A88: 173 | B88: Каша гречневая рассыпчатая | E88: 180/5 | F88: 10.48 | G88: 6.52 | H88: 54 | I88: 316.57 | J88: 0.15 | K88: 21.2 | L88: 0 | M88: 17.3 | N88: 152.04 | O88: 35 | P88: 2.27
A89: 294 | B89: Компот из сухофруктов | E89: 200 | F89: 0.12 | G89: 0 | H89: 19.4 | I89: 79.6 | J89: 0.01 | K89: 5 | L89: 0 | M89: 9.08 | N89: 12.43 | O89: 4.59 | P89: 0.74
A90: СГР | B90: Хлеб пшеничный | E90: 25 | F90: 2 | G90: 0 | H90: 10 | I90: 50 | J90: 0.04 | K90: 0 | L90: 0 | M90: 5.75 | N90: 21.75 | O90: 8.25 | P90: 0.5
A91: СГР | B91: Хлеб ржаной | E91: 25 | F91: 2 | G91: 0 | H91: 10 | I91: 50 | J91: 0.04 | K91: 0 | L91: 0 | M91: 7.25 | N91: 32.5 | O91: 10.5 | P91: 0.9
B92: Итого за обед | F92: =SUM(F86:F91) -> 30.5 | G92: 27.18 | H92: 117.16 | I92: 913.87 | J92: 0.46 | K92: 53.49 | L92: 68.03 | M92: 122.06 | N92: 392.47 | O92: 118.47 | P92: 9.68
B93: Итого за день | F93: 52.65 | G93: 53.4 | H93: 179.72 | I93: 1450.52 | J93: 0.6 | K93: 85.26 | L93: 77.49 | M93: 441.69 | N93: 716.28 | O93: 201.03 | P93: 9.595
A97: День: пятница | E97: Сезон: 01.09 - 01.03 (2025 - 2026г г)
A98: Неделя: 1 | E98: Возраст: с 11 до 18 лет
A99: № рецептуры | B99: Наименование блюда | E99: масса порций | F99: Пищевые вещества (г) | I99: энергетическая ценность | J99: Витамины | M99: Минеральные вещества (мг)
F100: Б | G100: Ж | H100: У | J100: В1 | K100: С | L100: А | M100: Са | N100: Р | O100: Мg | P100: Fe
B102: Завтрак
A103: 1 | B103: Сыр (порциями) | E103: 15 | F103: 3.66 | G103: 3.54 | H103: 0 | I103: 46.5 | J103: 0.03 | K103: 34.65 | L103: 0 | M103: 39.53 | N103: 30.15 | O103: 15.12 | P103: 0.55
A104: 181 | B104: Каша рисовая молочная вязкая с маслом | E104: 200/5 | F104: 5.12 | G104: 6.62 | H104: 32.61 | I104: 210.13 | J104: 0.08 | K104: 1.35 | L104: 0 | M104: 14.02 | N104: 178.97 | O104: 41.8 | P104: 1.97
A105: 301 | B105: Напиток "Валетек" | E105: 200 | F105: 0 | G105: 0 | H105: 15.8 | I105: 60 | J105: 0.3 | K105: 11.2 | L105: 170 | M105: 220 | N105: 4.2 | O105: 12.18 | P105: 0.08
A106: СГР | B106: Хлеб пшеничный для детского питания | E106: 50 | F106: 4 | G106: 0 | H106: 7.81 | I106: 39.06 | J106: 0.07 | L106: 0 | M106: 9.2 | N106: 34.8 | O106: 13.2 | P106: 0.8
A107: 281 | B107: Кисломолочный продукт | E107: 200/10 | F107: 5.7 | G107: 6.3 | H107: 17.6 | I107: 151 | J107: 0.06 | K107: 1.37 | L107: 0 | M107: 31.5 | N107: 15.3 | O107: 9.9 | P107: 0.09
B108: Итого за завтрак | F108: =SUM(F103:F107) -> 18.48 | G108: 16.46 | H108: 73.82 | I108: 506.69 | J108: 0.54 | K108: 48.57 | L108: 170 | M108: 314.25 | N108: 263.42 | O108: 92.2 | P108: 3.49
B109: Обед
A110: 54 | B110: Рассольник Ленинградский со сметаной | E110: 250/10 | F110: 5.03 | G110: 11.3 | H110: 32.38 | I110: 149.6 | J110: 0.09 | K110: 1.77 | L110: 10.15 | M110: 22.35 | N110: 175.47 | O110: 27.27 | P110: 2.83
A111: 2 | B111: Тефтели пф с томатным соусом | E111: 100/40 | F111: 14 | G111: 14 | H111: 12.95 | I111: 306.6 | J111: 0.07 | K111: 0.29 | L111: 0.1 | M111: 34.65 | N111: 1.23 | O111: 28.56 | P111: 1.48
A112: 138 | B112: Картофельное пюре | E112: 180 | F112: 3.6 | G112: 5.55 | H112: 24.15 | I112: 163.5 | J112: 0.17 | K112: 15.22 | L112: 6.2 | M112: 52.21 | N112: 166.16 | O112: 41.66 | P112: 1.51
A113: 283 | B113: Чай с сахаром | E113: 200 | F113: 0.1 | G113: 0 | H113: 9.1 | I113: 35 | J113: 0 | K113: 0 | L113: 0 | M113: 0.26 | N113: 0 | O113: 0 | P113: 0.03
A114: СГР | B114: Хлеб пшеничный | E114: 25 | F114: 2 | G114: 0 | H114: 10 | I114: 50 | J114: 0.04 | K114: 0 | L114: 0 | M114: 5.75 | N114: 21.75 | O114: 8.25 | P114: 0.5
A115: СГР | B115: Хлеб ржаной | E115: 25 | F115: 2 | G115: 0 | H115: 10 | I115: 50 | J115: 0.04 | K115: 0 | L115: 0 | M115: 7.25 | N115: 32.5 | O115: 10.5 | P115: 0.9
B116: Итого за обед | F116: =SUM(F110:F115) -> 26.73 | G116: 30.85 | H116: 98.58 | I116: 754.7 | J116: 0.41 | K116: 17.28 | L116: 16.45 | M116: 122.47 | N116: 397.11 | O116: 116.24 | P116: 7.25
B117: Итого за день | F117: 43.56 | G117: 89.41 | H117: 172.9 | I117: 1187.48 | J117: 0.76 | K117: 124.81 | L117: 26.35 | M117: 271.91 | N117: 846.37 | O117: 237.56 | P117: 11.74
A120: День: понедельник | E120: Сезон: 01.09 - 01.03 (2025 - 2026г г)
A121: Неделя: 2 | E121: Возраст: с 11 до 18 лет
A122: № рецептуры | B122: Наименование блюда | E122: масса порций | F122: Пищевые вещества (г) | I122: энергетическая ценность | J122: Витамины | M122: Минеральные вещества (мг)
F123: Б | G123: Ж | H123: У | J123: В1 | K123: С | L123: А | M123: Са | N123: Р | O123: Мg | P123: Fe
B125: Завтрак
A126: 3 | B126: Масло сливочное | E126: 10 | F126: 0.1 | G126: 7.13 | H126: 0.1 | I126: 66 | J126: 0 | K126: 0.105 | L126: 31.5 | M126: 150 | N126: 90 | O126: 8.25 | P126: 0.105
A127: 211 | B127: Макаронные изделия с тертым сыром | E127: 197 | F127: 10.6 | G127: 17.8 | H127: 35.6 | I127: 187.39 | J127: 0.09 | K127: 0.2 | L127: 28.8 | M127: 306.91 | N127: 55.51 | O127: 26.05 | P127: 1.21
A128: 289 | B128: Какао с молоком | E128: 200 | F128: 3.6 | G128: 3.3 | H128: 13.7 | I128: 98 | J128: 0.03 | K128: 0.52 | L128: 0 | M128: 110.37 | N128: 0 | O128: 26.97 | P128: 0.88
A129: СГР | B129: Хлеб пшеничный для детского питания | E129: 50 | F129: 4 | G129: 0 | H129: 7.81 | I129: 39.06 | J129: 0.07 | K129: 0 | L129: 0 | M129: 9.2 | N129: 34.8 | O129: 13.2 | P129: 0.8
B130: Итого за завтрак | F130: =SUM(F126:F129) -> 18.3 | G130: 28.23 | H130: 57.21 | I130: 390.45 | J130: 0.19 | K130: 0.825 | L130: 60.3 | M130: 576.48 | N130: 180.31 | O130: 74.47 | P130: 2.995
B131: Обед
A132: 44 | B132: Суп из овощей со сметаной | E132: 250/10 | F132: 1.93 | G132: 5.86 | H132: 12.59 | I132: 115.24 | J132: 0.22 | K132: 9.74 | L132: 0.11 | M132: 35.39 | N132: 190.3 | O132: 43.15 | P132: 3.26
A133: 3 | B133: Фрикадельки мясные пф с томатным соусом | E133: 100/40 | F133: 15.5 | G133: 12.4 | H133: 10.22 | I133: 188.04 | J133: 0.1 | K133: 18.32 | L133: 51.16 | M133: 56.6 | N133: 197.58 | O133: 39 | P133: 2.25
A134: 140 | B134: Каша рисовая рассыпчатая | E134: 180 | F134: 4.3 | G134: 4.7 | H134: 44.1 | I134: 240 | J134: 0.108 | K134: 0 | L134: 28.8 | M134: 13.38 | N134: 55.51 | O134: 9.82 | P134: 0.99
A135: 283 | B135: Чай с сахаром | E135: 200 | F135: 0.1 | G135: 0 | H135: 9.1 | I135: 35 | J135: 0 | K135: 0 | L135: 0 | M135: 0.26 | N135: 0 | O135: 0 | P135: 0.03
A136: СГР | B136: Хлеб пшеничный | E136: 25 | F136: 2 | G136: 0 | H136: 10 | I136: 50 | J136: 0.04 | K136: 0 | L136: 0 | M136: 5.75 | N136: 21.75 | O136: 8.25 | P136: 0.5
A137: СГР | B137: Хлеб ржаной | E137: 25 | F137: 2 | G137: 0 | H137: 10 | I137: 50 | J137: 0.04 | K137: 0 | L137: 0 | M137: 7.25 | N137: 32.5 | O137: 10.5 | P137: 0.9
B138: Итого за обед | F138: =SUM(F132:F137) -> 25.83 | G138: 22.96 | H138: 96.01 | I138: 678.28 | J138: 0.508 | K138: 28.06 | L138: 80.07 | M138: 118.63 | N138: 497.64 | O138: 110.72 | P138: 7.93
B139: Итого за день | F139: 41.75 | G139: 48.84 | H139: 160.53 | I139: 1069.87 | J139: 0.958 | K139: 67.28 | L139: 146.16 | M139: 410.43 | N139: 977.97 | O139: 304.51 | P139: 15.165
A142: День: вторник | E142: Сезон: 01.09 - 01.03 (2025 - 2026г г)
A143: Неделя: 2 | E143: Возраст: с 11 до 18 лет
A144: № рецептуры | B144: Наименование блюда | E144: масса порций | F144: Пищевые вещества (г) | I144: энергетическая ценность | J144: Витамины | M144: Минеральные вещества (мг)
F145: Б | G145: Ж | H145: У | J145: В1 | K145: С | L145: А | M145: Са | N145: Р | O145: Мg | P145: Fe
B147: Завтрак
A148: 2 | B148: Тефтели мясные пф с томатным соусом | E148: 100/40 | F148: 14 | G148: 14 | H148: 12.95 | I148: 306.6 | J148: 0.1 | K148: 1.9 | L148: 48.32 | M148: 29.33 | N148: 121.66 | O148: 16.14 | P148: 1.74
A149: 173 | B149: Каша гречневая рассыпчатая | E149: 180/5 | F149: 10.48 | G149: 6.52 | H149: 54 | I149: 316.57 | J149: 0.17 | K149: 26.11 | L149: 28.8 | M149: 43.14 | N149: 98.22 | O149: 33.03 | P149: 1.2
A150: 283 | B150: Чай с сахаром | E150: 200 | F150: 0.1 | G150: 0 | H150: 9.1 | I150: 35 | J150: 0 | K150: 0 | L150: 0 | M150: 0.26 | N150: 0 | O150: 0 | P150: 0.03
A151: СГР | B151: Хлеб пшеничный (для детского питания) | E151: 50 | F151: 4 | G151: 0 | H151: 7.81 | I151: 39.06 | J151: 0.09 | K151: 0 | L151: 0 | M151: 10.2 | N151: 35.8 | O151: 14.2 | P151: 1
B152: Итого за завтрак | F152: =SUM(F148:F151) -> 28.58 | G152: 20.52 | H152: 83.86 | I152: 697.23 | J152: 0.36 | K152: 28.01 | L152: 77.12 | M152: 82.93 | N152: 255.68 | O152: 63.37 | P152: 3.97
B153: Обед
A154: 23 | B154: Салат из свеклы с растительным маслом | E154: 100 | F154: 1.3 | G154: 7.4 | H154: 6 | I154: 95 | J154: 0.03 | K154: 2.64 | L154: 0 | M154: 14.31 | N154: 29.16 | O154: 20.06 | P154: 0.38
A155: 56 | B155: Бишбармак | E155: 250 | F155: 2.6 | G155: 4.3 | H155: 11.6 | I155: 96 | J155: 0.02 | K155: 0.6 | L155: 16.08 | M155: 11.61 | N155: 57.52 | O155: 7.18 | P155: 0.41
A156: 1 | B156: Котлеты пф с томатным соусом | E156: 100/40 | F156: 14 | G156: 14 | H156: 12.95 | I156: 306.6 | J156: 0.1 | K156: 1.9 | L156: 48.32 | M156: 29.33 | N156: 101.41 | O156: 16.14 | P156: 1.74
A157: 168 | B157: Пюре гороховое | E157: 180/5 | F157: 17.7 | G157: 5.8 | H157: 41.6 | I157: 292 | J157: 0.61 | K157: 0 | L157: 1.2 | M157: 98.97 | N157: 0 | O157: 89.65 | P157: 5.83
A158: 283 | B158: Чай с сахаром | E158: 200 | F158: 0.1 | G158: 0 | H158: 9.1 | I158: 35 | J158: 0 | K158: 0 | L158: 0 | M158: 0.26 | N158: 0 | O158: 0 | P158: 0.03
A159: СГР | B159: Хлеб пшеничный | E159: 25 | F159: 2 | G159: 0 | H159: 10 | I159: 50 | J159: 0.04 | K159: 0 | L159: 0 | M159: 5.75 | N159: 21.75 | O159: 8.25 | P159: 0.5
A160: СГР | B160: Хлеб ржаной | E160: 25 | F160: 2 | G160: 0 | H160: 10 | I160: 50 | J160: 0.04 | K160: 0 | L160: 0 | M160: 7.25 | N160: 32.5 | O160: 10.5 | P160: 0.9
B161: Итого за обед | F161: =SUM(F154:F160) -> 39.7 | G161: 31.5 | H161: 101.25 | I161: 924.6 | J161: 0.84 | K161: 5.14 | L161: 65.6 | M161: 167.48 | N161: 242.34 | O161: 151.78 | P161: 9.79
B162: Итого за день | F162: 69.98 | G162: 54.32 | H162: 199.01 | I162: 1597.63 | J162: 0.675 | K162: 105.48 | L162: 52.26 | M162: 317.57 | N162: 721.83 | O162: 221.52 | P162: 9.96
A165: День: среда | E165: Сезон: 01.09 - 01.03 (2025 - 2026г г)
A166: Неделя: 2 | E166: Возраст: с 11 до 18 лет
A167: № рецептуры | B167: Наименование блюда | E167: масса порций | F167: Пищевые вещества (г) | I167: энергетическая ценность | J167: Витамины | M167: Минеральные вещества (мг)
F168: Б | G168: Ж | H168: У | J168: В1 | K168: С | L168: А | M168: Са | N168: Р | O168: Мg | P168: Fe
B170: Завтрак
A171: 3 | B171: Масло сливочное | E171: 10 | F171: 0.1 | G171: 7.13 | H171: 0.1 | I171: 66 | J171: 0 | K171: 0.105 | L171: 31.5 | M171: 150 | N171: 90 | O171: 8.25 | P171: 0.105
A172: 1 | B172: Котлеты мясные пф с томатным соусом | E172: 100/40 | F172: 14 | G172: 14 | H172: 12.95 | I172: 306.6 | J172: 0.1 | K172: 1.9 | L172: 48.32 | M172: 29.33 | N172: 162.2 | O172: 16.14 | P172: 1.74
A173: 184 | B173: Каша ячневая рассыпчатая | E173: 180/5 | F173: 5.88 | G173: 4.44 | H173: 37.08 | I173: 214.8 | J173: 0.18 | K173: 10.17 | L173: 65.3 | M173: 129.34 | N173: 3 | O173: 70.3 | P173: 1.87
A174: 283 | B174: Чай с сахаром | E174: 200 | F174: 0.1 | G174: 0 | H174: 9.1 | I174: 35 | J174: 0 | K174: 0 | L174: 0 | M174: 0.26 | N174: 0 | O174: 0 | P174: 0.03
A175: СГР | B175: Хлеб пшеничный (для детского питания) | E175: 50 | F175: 4 | G175: 0 | H175: 7.81 | I175: 39.06 | J175: 0.09 | K175: 0 | L175: 0 | M175: 10.2 | N175: 35.8 | O175: 14.2 | P175: 1
B176: Итого за завтрак | F176: =SUM(F171:F175) -> 24.08 | G176: 25.57 | H176: 67.04 | I176: 661.46 | J176: 0.37 | K176: 12.175 | L176: 145.12 | M176: 319.13 | N176: 291 | O176: 108.89 | P176: 4.745
B177: Обед
A178: 19 | B178: Салат из моркови | E178: 100 | F178: 2 | G178: 9 | H178: 5.29 | I178: 93 | J178: 0.03 | K178: 2.64 | L178: 0 | M178: 14.31 | N178: 29.16 | O178: 20.06 | P178: 0.38
A179: 53 | B179: Щи из свежей капусты со сметаной | E179: 250/10 | F179: 2.09 | G179: 6.33 | H179: 10.64 | I179: 107.83 | J179: 0.07 | K179: 15.21 | L179: 7.5 | M179: 32.53 | N179: 57.52 | O179: 25.98 | P179: 1.27
A180: 2 | B180: Тефтели мясные пф с томатным соусом | E180: 100/40 | F180: 14 | G180: 14 | H180: 12.95 | I180: 306.6 | J180: 0.1 | K180: 1.9 | L180: 48.32 | M180: 29.33 | N180: 178.97 | O180: 16.14 | P180: 1.74
A181: 212 | B181: Макаронные изделия отварные с маслом | E181: 180/5 | F181: 6.97 | G181: 4.44 | H181: 44.48 | I181: 245.99 | J181: 0.17 | K181: 26.11 | L181: 28.8 | M181: 43.14 | N181: 98.22 | O181: 33.03 | P181: 1.2
A182: 294 | B182: Компот из сухофруктов | E182: 200 | F182: 0.12 | G182: 0 | H182: 19.4 | I182: 79.6 | J182: 0.01 | K182: 20.2 | L182: 0 | M182: 6.76 | N182: 4.4 | O182: 3.6 | P182: 0.92
A183: СГР | B183: Хлеб пшеничный | E183: 25 | F183: 2 | G183: 0 | H183: 10 | I183: 50 | J183: 0.04 | K183: 0 | L183: 0 | M183: 5.75 | N183: 21.75 | O183: 8.25 | P183: 0.5
A184: СГР | B184: Хлеб ржаной | E184: 25 | F184: 2 | G184: 0 | H184: 10 | I184: 50 | J184: 0.04 | K184: 0 | L184: 0 | M184: 7.25 | N184: 32.5 | O184: 10.5 | P184: 0.9
B185: Итого за обед | F185: =SUM(F178:F184) -> 29.18 | G185: 33.77 | H185: 112.76 | I185: 933.02 | J185: 0.46 | K185: 66.06 | L185: 84.62 | M185: 139.07 | N185: 422.52 | O185: 117.56 | P185: 6.91
B186: Итого за день | F186: 50.26 | G186: 55.34 | H186: 183.1 | I186: 1453.28 | J186: 0.645 | K186: 85.5 | L186: 91.31 | M186: 292.27 | N186: 637.07 | O186: 190.21 | P186: 8.99
A189: День: четверг | E189: Сезон: 01.09 - 01.03 (2025 - 2026г г)
A190: Неделя: 2 | E190: Возраст: с 11 до 18 лет
A191: № рецептуры | B191: Наименование блюда | E191: масса порций | F191: Пищевые вещества (г) | I191: энергетическая ценность | J191: Витамины | M191: Минеральные вещества (мг)
F192: Б | G192: Ж | H192: У | J192: В1 | K192: С | L192: А | M192: Са | N192: Р | O192: Мg | P192: Fe
B194: Завтрак
A195: 3 | B195: Фрикадельки мясные с томатным соусом | E195: 100/40 | F195: 15.5 | G195: 12.4 | H195: 10.22 | I195: 188.04 | J195: 0.02 | K195: 0.35 | L195: 17.55 | M195: 8.86 | N195: 240.53 | O195: 23.6 | P195: 0.57
A196: 138 | B196: Картофельное пюре | E196: 180 | F196: 3.6 | G196: 5.55 | H196: 24.15 | I196: 163.5 | J196: 0.17 | K196: 15.22 | L196: 6.2 | M196: 52.21 | N196: 166.16 | O196: 41.66 | P196: 1.51
A197: 285 | B197: Чай с лимоном и сахаром | E197: 207 | F197: 0.07 | G197: 0.01 | H197: 15.31 | I197: 61.62 | J197: 0 | K197: 1.12 | L197: 0 | M197: 2.73 | N197: 0 | O197: 0.73 | P197: 0.06
A198: СГР | B198: Хлеб пшеничный для детского питания | E198: 50 | F198: 4 | G198: 0 | H198: 7.81 | I198: 39.06 | J198: 0.07 | K198: 0 | L198: 0 | M198: 9.2 | N198: 34.8 | O198: 13.2 | P198: 0.8
B199: Итого за завтрак | E199: 600 | F199: =SUM(F195:F198) -> 23.17 | G199: 17.96 | H199: 57.49 | I199: 452.22 | J199: 0.26 | K199: 16.69 | L199: 23.75 | M199: 73 | N199: 441.49 | O199: 79.19 | P199: 2.94
B200: Обед
A201: 68 | B201: Свекольник со сметаной | E201: 250/10 | F201: 2.41 | G201: 7.93 | H201: 12.56 | I201: 130.2 | J201: 0.05 | K201: 4.84 | L201: 7.62 | M201: 28.27 | N201: 171.85 | O201: 24.9 | P201: 1.21
A202: 6 | B202: Салат из белокочанной капусты с морковью | E202: 100 | F202: 1.84 | G202: 4.1 | H202: 9.34 | I202: 82.83 | J202: 0.04 | K202: 0 | L202: 0 | M202: 8.86 | N202: 34.8 | O202: 13.2 | P202: 1.51
A203: 2 | B203: Тефтели пф с томатным соусом | E203: 100/40 | F203: 14 | G203: 14 | H203: 12.95 | I203: 306.6 | J203: 0.1 | K203: 1.9 | L203: 48.32 | M203: 29.33 | N203: 197.58 | O203: 16.14 | P203: 1.74
A204: 173 | B204: Каша гречневая рассыпчатая | E204: 200/5 | F204: 11.64 | G204: 7.24 | H204: 60 | I204: 351.74 | J204: 0.17 | K204: 26.11 | L204: 28.8 | M204: 43.14 | N204: 98.22 | O204: 33.03 | P204: 1.2
A205: 311 | B205: Витаминизированный кисель | E205: 200 | F205: 0.25 | G205: 0 | H205: 4.8 | I205: 20 | J205: 0.01 | K205: 20.2 | L205: 0 | M205: 6.76 | N205: 4.4 | O205: 3.6 | P205: 0.92
A206: СГР | B206: Хлеб пшеничный | E206: 25 | F206: 2 | G206: 0 | H206: 10 | I206: 50 | J206: 0.04 | K206: 0 | L206: 0 | M206: 5.75 | N206: 21.75 | O206: 8.25 | P206: 0.5
A207: СГР | B207: Хлеб ржаной | E207: 25 | F207: 2 | G207: 0 | H207: 10 | I207: 50 | J207: 0.04 | K207: 0 | L207: 0 | M207: 7.25 | N207: 32.5 | O207: 10.5 | P207: 0.9
B208: Итого за обед | E208: 915 | F208: =SUM(F201:F207) -> 34.14 | G208: 33.27 | H208: 119.65 | I208: 991.37 | J208: 0.45 | K208: 53.05 | L208: 84.74 | M208: 129.36 | N208: 561.1 | O208: 109.62 | P208: 7.98
B209: Итого за день | E209: 1515 | F209: 51.6 | G209: 43.2 | H209: 169.53 | I209: 1267.56 | J209: 0.68 | K209: 95.45 | L209: 129.53 | M209: 509.89 | N209: 906.35 | O209: 195.84 | P209: 11.055
A212: День: пятница | E212: Сезон: 01.09 - 01.03 (2025 - 2026г г)
A213: Неделя: 2 | E213: Возраст: с 11 до 18 лет
A214: № рецептуры | B214: Наименование блюда | E214: масса порций | F214: Пищевые вещества (г) | I214: энергетическая ценность | J214: Витамины | M214: Минеральные вещества (мг)
F215: Б | G215: Ж | H215: У | J215: В1 | K215: С | L215: А | M215: Са | N215: Р | O215: Мg | P215: Fe
B217: Завтрак
A218: 196 | B218: Каша молочная "Дружба" с маслом | E218: 200/5 | F218: 6.6 | G218: 8.4 | H218: 35.38 | I218: 243.07 | J218: 0.14 | K218: 1.17 | L218: 38 | M218: 123.74 | N218: 181.86 | O218: 34.2 | P218: 1.81
A219: 3 | B219: Масло сливочное | E219: 10 | F219: 0.1 | G219: 7.13 | H219: 0.1 | I219: 66 | J219: 0 | K219: 0.105 | L219: 31.5 | M219: 150 | N219: 90 | O219: 8.25 | P219: 0.105
A220: 1 | B220: Сыр (порциями) | E220: 15 | F220: 3.66 | G220: 3.54 | H220: 0 | I220: 46.5 | J220: 0.02 | K220: 0.11 | L220: 0 | M220: 91.52 | N220: 90 | O220: 9.7 | P220: 0.04
A221: 283 | B221: Чай с сахаром | E221: 200 | F221: 0.1 | G221: 0 | H221: 9.1 | I221: 35 | J221: 0 | K221: 0 | L221: 0 | M221: 0.26 | N221: 0 | O221: 0 | P221: 0.03
A222: СГР | B222: Хлеб пшеничный (для детского питания) | E222: 50 | F222: 4 | G222: 0 | H222: 7.81 | I222: 39.06 | J222: 0.09 | K222: 0 | L222: 0 | M222: 10.2 | N222: 35.8 | O222: 14.2 | P222: 1
A223: 281 | B223: Кисломолочный продукт | E223: 200/10 | F223: 5.7 | G223: 6.3 | H223: 17.6 | I223: 151 | J223: 0 | K223: 0 | L223: 10.9 | M223: 0 | N223: 0 | O223: 0 | P223: 0
B224: Итого за завтрак | E224: 690 | F224: =SUM(F218:F223) -> 20.16 | G224: 25.37 | H224: 69.99 | I224: 580.63 | J224: 0.25 | K224: 1.385 | L224: 80.4 | M224: 375.72 | N224: 397.66 | O224: 66.35 | P224: 2.985
B225: Обед
A226: 63 | B226: Суп картофельный с горохом | E226: 250 | F226: 9.88 | G226: 5.3 | H226: 39.38 | I226: 248.75 | J226: 0.22 | K226: 4.66 | L226: 7.5 | M226: 32.23 | N226: 41.72 | O226: 39.84 | P226: 2.3
A227: 1 | B227: Котлеты мясные с томатным соусом | E227: 100/40 | F227: 14 | G227: 14 | H227: 12.95 | I227: 306.6 | J227: 0.1 | K227: 1.9 | L227: 48.32 | M227: 29.33 | N227: 121.66 | O227: 16.14 | P227: 1.74
A228: 212 | B228: Макаронные изделия отварные с маслом | E228: 180/5 | F228: 6.97 | G228: 4.44 | H228: 44.48 | I228: 245.99 | J228: 0.12 | K228: 26.11 | L228: 28.8 | M228: 43.14 | N228: 98.22 | O228: 33.03 | P228: 1.2
A229: 295 | B229: Компот из плодов яблок | E229: 200 | F229: 0.2 | G229: 0 | H229: 17.2 | I229: 68 | J229: 0.01 | K229: 20.2 | L229: 0 | M229: 6.76 | N229: 4.4 | O229: 3.6 | P229: 0.92
A230: СГР | B230: Хлеб пшеничный | E230: 25 | F230: 2 | G230: 0 | H230: 10 | I230: 50 | J230: 0.04 | K230: 0 | L230: 0 | M230: 5.75 | N230: 21.75 | O230: 8.25 | P230: 0.5
A231: СГР | B231: Хлеб ржаной | E231: 25 | F231: 2 | G231: 0 | H231: 10 | I231: 50 | J231: 0.04 | K231: 0 | L231: 0 | M231: 7.25 | N231: 32.5 | O231: 10.5 | P231: 0.9
B232: Итого за обед | E232: 865 | F232: 33.71 | G232: 21.86 | H232: 134.44 | I232: 896.14 | J232: =SUM(J226:J231) -> 0.53 | K232: 52.87 | L232: 84.62 | M232: 124.46 | N232: 320.25 | O232: 111.36 | P232: 7.56
... 29 more rows

Sheet Лист3
